fUSD/lending_fUSD_20250113
["ID","MTS","AMOUNT","RATE_DAILY","PERIOD"]
[348700015,1736726426882,339.66,8.97e-05,2]
[348700016,1736726441710,176.09,7.176e-05,2]
[348700017,1736726447233,12399.0,0.00023,120]
[348700018,1736726456696,319.15877305,8e-05,2]
[348700020,1736726558901,23900.0,8.965e-05,2]
[348700022,1736726670716,150.0,0.00022421,120]
[348700023,1736726687863,250.0,8.966e-05,2]
[348700024,1736726755270,4098.79,8.966e-05,2]
[348700025,1736726795483,250.0,8.962e-05,2]
[348700026,1736726840801,164.01,8.959e-05,2]
[348700027,1736726910764,150.0,0.0002271,120]
[348700028,1736726927574,274.46,8.945e-05,2]
[348700029,1736726974912,733.8,8.219e-05,2]
[348700030,1736727030751,150.0,0.00020078,120]
[348700036,1736727036599,-200.0,8.975e-05,2]
[348700037,1736727036609,-250.0,8.978e-05,2]
[348700038,1736727036618,-458.95,8.988e-05,2]
[348700039,1736727036627,-912.69,8.993e-05,2]
[348700040,1736727036636,-135.3,9e-05,2]
[348700041,1736727036648,-183.7,9e-05,2]
[348700042,1736727036657,-163.73,9.012e-05,2]
[348700043,1736727036670,-418.78,9.042e-05,2]
[348700044,1736727036679,-560.15403457,9.317e-05,2]
[348700045,1736727036688,-150.0,9.319e-05,2]
[348700046,1736727036698,-300.0,9.319e-05,2]
[348700047,1736727036707,-150.0,9.32e-05,2]
[348700048,1736727036717,-437.93,9.32e-05,2]
[348700049,1736727036726,-772.19,9.32e-05,2]
[348700050,1736727036737,-437.93,9.32e-05,2]
[348700051,1736727036746,-273.16,9.32e-05,2]
[348700052,1736727036756,-772.19,9.32e-05,2]
[348700053,1736727036765,-437.93,9.32e-05,2]
[348700054,1736727036774,-437.58,9.32e-05,2]
[348700055,1736727036783,-772.19,9.32e-05,2]
[348700056,1736727036793,-772.19,9.32e-05,2]
[348700057,1736727036802,-772.19,9.32e-05,2]
[348700058,1736727036812,-925.01,9.32e-05,2]
[348700059,1736727036823,-1000.0,9.499e-05,2]
[348700060,1736727036832,-2019.40239226,9.839e-05,2]
[348700061,1736727036841,-411.0416538,9.88e-05,2]
[348700062,1736727036852,-9418.6317462,9.88e-05,2]
[348700063,1736727036861,-1196.3682538,9.893e-05,2]
[348700064,1736727036884,-1948.0318462,9.893e-05,2]
[348700065,1736727036894,-5000.0,9.896e-05,2]
[348700066,1736727036903,-996.77566715,9.914e-05,2]
[348700067,1736727036912,-1496.35563359,9.97e-05,2]
[348700068,1736727036921,-14007.39717358,9.97e-05,2]
[348700069,1736727036933,-793.07877249,9.97e-05,2]
[348700070,1736727036949,-1643.91621459,9.97e-05,2]
[348700071,1736727036961,-1703.61103245,9.97e-05,2]
[348700074,1736727036987,-796.7,9.97e-05,2]
[348700076,1736727036998,-1132.87600634,9.97e-05,2]
[348700077,1736727037009,-750.37477044,9.97e-05,2]
[348700078,1736727037021,-29423.22438824,9.97e-05,2]
[348700080,1736727037031,-3298.50646809,9.971e-05,2]
[348700082,1736727037040,-501.58268523,9.971e-05,2]
[348700083,1736727037049,-3298.50646809,9.972e-05,2]
[348700085,1736727037058,-151.0,9.973e-05,2]
[348700087,1736727037068,-519.2101584,9.973e-05,2]
[348700089,1736727037076,-499.91242727,9.973e-05,2]
[348700091,1736727037085,-500.0,9.973e-05,2]
[348700093,1736727037095,-1496.35563359,9.973e-05,2]
[348700094,1736727037103,-1313.87085308,9.973e-05,2]
[348700095,1736727037112,-1313.87085308,9.976e-05,2]
[348700096,1736727037123,-1496.35563359,9.977e-05,2]
[348700097,1736727037133,-3298.50646809,9.977e-05,2]
[348700098,1736727037143,-1313.87085308,9.978e-05,2]
[348700099,1736727037152,-3298.50646809,9.983e-05,2]
[348700100,1736727037162,-1496.35563359,9.985e-05,2]
[348700101,1736727037171,-3298.50646809,9.985e-05,2]
[348700102,1736727037180,-1496.35563359,9.987e-05,2]
[348700103,1736727037189,-1313.87085308,9.987e-05,2]
[348700104,1736727037199,-1313.87085308,9.989e-05,2]
[348700105,1736727037208,-500.0,9.991e-05,2]
[348700106,1736727037217,-927.13,9.991e-05,2]
[348700107,1736727037226,-2502.78,9.991e-05,2]
[348700108,1736727037235,-500.0,9.991e-05,2]
[348700109,1736727037245,-500.0,9.991e-05,2]
[348700110,1736727037255,-522.99,9.991e-05,2]
[348700111,1736727037264,-566.89,9.991e-05,2]
[348700112,1736727037274,-893.8,9.991e-05,2]
[348700113,1736727037284,-500.0,9.991e-05,2]
[348700114,1736727037294,-1970.36,9.991e-05,2]
[348700115,1736727037303,-500.0,9.991e-05,2]
[348700116,1736727037312,-1370.66,9.991e-05,2]
[348700117,1736727037322,-539.57,9.991e-05,2]
[348700118,1736727037332,-1331.9,9.991e-05,2]
[348700119,1736727037341,-964.02,9.991e-05,2]
[348700120,1736727037351,-500.0,9.991e-05,2]
[348700121,1736727037360,-880.61,9.991e-05,2]
[348700122,1736727037369,-500.0,9.991e-05,2]
[348700123,1736727037378,-500.0,9.991e-05,2]
[348700124,1736727037386,-562.92,9.991e-05,2]
[348700125,1736727037396,-1494.44,9.991e-05,2]
[348700126,1736727037405,-628.89,9.991e-05,2]
[348700127,1736727037415,-500.0,9.991e-05,2]
[348700128,1736727037424,-500.0,9.991e-05,2]
[348700129,1736727037433,-820.76,9.991e-05,2]
[348700130,1736727037442,-612.88,9.991e-05,2]
[348700131,1736727037451,-500.0,9.991e-05,2]
[348700132,1736727037460,-500.0,9.991e-05,2]
[348700133,1736727037469,-500.0,9.991e-05,2]
[348700134,1736727037479,-1027.38,9.991e-05,2]
[348700135,1736727037488,-500.0,9.991e-05,2]
[348700136,1736727037498,-598.5,9.991e-05,2]
[348700137,1736727037507,-500.0,9.991e-05,2]
[348700138,1736727037516,-500.0,9.991e-05,2]
[348700139,1736727037759,-500.0,9.991e-05,2]
[348700140,1736727037770,-534.57,9.991e-05,2]
[348700141,1736727037779,-538.66,9.991e-05,2]
[348700142,1736727037789,-628.2,9.991e-05,2]
[348700143,1736727037798,-500.0,9.991e-05,2]
[348700144,1736727037807,-524.03,9.991e-05,2]
[348700145,1736727037816,-1147.37,9.991e-05,2]
[348700146,1736727037825,-500.0,9.991e-05,2]
[348700147,1736727037835,-500.0,9.991e-05,2]
[348700148,1736727037844,-1313.87085308,9.991e-05,2]
[348700149,1736727037853,-401.71,9.992e-05,2]
[348700150,1736727037863,-500.0,9.992e-05,2]
[348700151,1736727037871,-500.0,9.992e-05,2]
[348700152,1736727037880,-500.0,9.992e-05,2]
[348700153,1736727037890,-500.0,9.992e-05,2]
[348700154,1736727037899,-500.0,9.992e-05,2]
[348700155,1736727037908,-500.0,9.992e-05,2]
[348700156,1736727037918,-500.0,9.992e-05,2]
[348700157,1736727037927,-500.0,9.992e-05,2]
[348700158,1736727037936,-500.0,9.992e-05,2]
[348700159,1736727037946,-500.0,9.992e-05,2]
[348700160,1736727037955,-500.0,9.992e-05,2]
[348700161,1736727037964,-500.0,9.992e-05,2]
[348700162,1736727037973,-500.0,9.992e-05,2]
[348700163,1736727037982,-500.0,9.992e-05,2]
[348700164,1736727037991,-500.0,9.992e-05,2]
[348700165,1736727038000,-500.0,9.992e-05,2]
[348700166,1736727038009,-500.0,9.992e-05,2]
[348700167,1736727038018,-500.0,9.992e-05,2]
[348700168,1736727038027,-500.0,9.992e-05,2]
[348700169,1736727038036,-500.0,9.992e-05,2]
[348700170,1736727038045,-500.0,9.992e-05,2]
[348700171,1736727038055,-500.0,9.992e-05,2]
[348700172,1736727038066,-500.0,9.992e-05,2]
[348700174,1736727038076,-500.0,9.992e-05,2]
[348700175,1736727038086,-504.02,9.992e-05,2]
[348700176,1736727038095,-501.13355545,9.992e-05,2]
[348700177,1736727038106,-500.0,9.992e-05,2]
[348700178,1736727038117,-500.0,9.992e-05,2]
[348700179,1736727038127,-501.12103225,9.992e-05,2]
[348700180,1736727038138,-500.0,9.992e-05,2]
[348700182,1736727038147,-500.0,9.992e-05,2]
[348700183,1736727038156,-500.0,9.992e-05,2]
[348700184,1736727038167,-500.0,9.992e-05,2]
[348700185,1736727038177,-500.0,9.992e-05,2]
[348700186,1736727038186,-500.0,9.992e-05,2]
[348700187,1736727038195,-500.0,9.992e-05,2]
[348700188,1736727038204,-500.0,9.992e-05,2]
[348700189,1736727038214,-500.63137883,9.992e-05,2]
[348700190,1736727038223,-500.0,9.992e-05,2]
[348700191,1736727038232,-500.0,9.992e-05,2]
[348700192,1736727038241,-500.0,9.992e-05,2]
[348700193,1736727038250,-500.82726261,9.992e-05,2]
[348700194,1736727038259,-543.56628654,9.992e-05,2]
[348700195,1736727038267,-504.86416809,9.992e-05,2]
[348700196,1736727038276,-500.0,9.992e-05,2]
[348700197,1736727038285,-500.0,9.992e-05,2]
[348700198,1736727038294,-485.77822791,9.992e-05,2]
[348700199,1736727038303,-500.0,9.992e-05,2]
[348700200,1736727038312,-500.0,9.992e-05,2]
[348700201,1736727038321,-500.0,9.992e-05,2]
[348700202,1736727038330,-275.86946429,9.992e-05,2]
[348700203,1736727038339,-500.0,9.992e-05,2]
[348700204,1736727038348,-500.0,9.992e-05,2]
[348700205,1736727038357,-500.0,9.992e-05,2]
[348700206,1736727038366,-500.0,9.992e-05,2]
[348700207,1736727038375,-500.0,9.992e-05,2]
[348700208,1736727038383,-500.0,9.992e-05,2]
[348700209,1736727038392,-196.93857927,9.992e-05,2]
[348700210,1736727038405,-500.0,9.992e-05,2]
[348700211,1736727038413,-500.0,9.992e-05,2]
[348700212,1736727038425,-500.0,9.992e-05,2]
[348700213,1736727038435,-500.0,9.992e-05,2]
[348700214,1736727038444,-500.0,9.992e-05,2]
[348700215,1736727038453,-501.0798274,9.992e-05,2]
[348700216,1736727038462,-500.0,9.992e-05,2]
[348700217,1736727038472,-500.0,9.992e-05,2]
[348700218,1736727038481,-500.0,9.992e-05,2]
[348700219,1736727038491,-500.0,9.992e-05,2]
[348700220,1736727038502,-500.0,9.992e-05,2]
[348700221,1736727038512,-500.0,9.992e-05,2]
[348700222,1736727038522,-500.0,9.992e-05,2]
[348700223,1736727038532,-500.0,9.992e-05,2]
[348700224,1736727038542,-500.0,9.992e-05,2]
[348700225,1736727038552,-500.0,9.992e-05,2]
[348700226,1736727038562,-459.96177271,9.992e-05,2]
[348700227,1736727038571,-500.0,9.992e-05,2]
[348700228,1736727038581,-500.0,9.992e-05,2]
[348700229,1736727038590,-500.0,9.992e-05,2]
[348700231,1736727038599,-500.61300584,9.992e-05,2]
[348700233,1736727038608,-500.0,9.992e-05,2]
[348700235,1736727038617,-500.0,9.992e-05,2]
[348700237,1736727038626,-500.0,9.992e-05,2]
[348700239,1736727038635,-502.06239129,9.992e-05,2]
[348700241,1736727038644,-500.0,9.992e-05,2]
[348700243,1736727038653,-500.0,9.992e-05,2]
[348700245,1736727038663,-500.0,9.992e-05,2]
[348700247,1736727038675,-500.0,9.992e-05,2]
[348700249,1736727038684,-500.0,9.992e-05,2]
[348700251,1736727038693,-515.91330971,9.992e-05,2]
[348700252,1736727038704,-500.0,9.992e-05,2]
[348700254,1736727038714,-500.0,9.992e-05,2]
[348700256,1736727038722,-500.0,9.992e-05,2]
[348700258,1736727038731,-500.0,9.992e-05,2]
[348700260,1736727038740,-500.0,9.992e-05,2]
[348700262,1736727038750,-500.0,9.992e-05,2]
[348700264,1736727038759,-502.69828812,9.992e-05,2]
[348700266,1736727038769,-502.3678845,9.992e-05,2]
[348700267,1736727038777,-500.0,9.992e-05,2]
[348700268,1736727038786,-601.54,9.992e-05,2]
[348700269,1736727038795,-500.0,9.992e-05,2]
[348700270,1736727038804,-367.39412539,9.992e-05,2]
[348700271,1736727038813,-525.50503606,9.992e-05,2]
[348700272,1736727038823,-500.0,9.992e-05,2]
[348700273,1736727038832,-500.0,9.992e-05,2]
[348700274,1736727038841,-500.0,9.992e-05,2]
[348700275,1736727038850,-498.63494219,9.992e-05,2]
[348700276,1736727038859,-500.0,9.992e-05,2]
[348700278,1736727038868,-504.07263845,9.992e-05,2]
[348700279,1736727038877,-500.0,9.992e-05,2]
[348700280,1736727038886,-500.0,9.992e-05,2]
[348700281,1736727038895,-500.0,9.992e-05,2]
[348700282,1736727038904,-500.0,9.992e-05,2]
[348700283,1736727038914,-503.8741479,9.992e-05,2]
[348700284,1736727038922,-500.0,9.992e-05,2]
[348700285,1736727038931,-501.77485595,9.992e-05,2]
[348700286,1736727038941,-500.0,9.992e-05,2]
[348700287,1736727038950,-527.74,9.992e-05,2]
[348700288,1736727038959,-502.43344201,9.992e-05,2]
[348700289,1736727038967,-500.0,9.992e-05,2]
[348700290,1736727038976,-500.0,9.992e-05,2]
[348700291,1736727038985,-500.0,9.992e-05,2]
[348700292,1736727038994,-500.0,9.992e-05,2]
[348700293,1736727039004,-500.0,9.992e-05,2]
[348700294,1736727039013,-500.0,9.992e-05,2]
[348700295,1736727039022,-500.0,9.992e-05,2]
[348700296,1736727039031,-500.0,9.992e-05,2]
[348700297,1736727039040,-500.0,9.992e-05,2]
[348700298,1736727039049,-500.0,9.992e-05,2]
[348700299,1736727039059,-500.0,9.992e-05,2]
[348700300,1736727039068,-500.0,9.992e-05,2]
[348700301,1736727039077,-500.0,9.992e-05,2]
[348700302,1736727039086,-500.0,9.992e-05,2]
[348700303,1736727039097,-500.0,9.992e-05,2]
[348700304,1736727039106,-500.0,9.992e-05,2]
[348700305,1736727039115,-500.0,9.992e-05,2]
[348700306,1736727039124,-500.0,9.992e-05,2]
[348700307,1736727039133,-500.0,9.992e-05,2]
[348700308,1736727039142,-500.0,9.992e-05,2]
[348700309,1736727039151,-500.0,9.992e-05,2]
[348700310,1736727039160,-500.0,9.992e-05,2]
[348700311,1736727039169,-500.0,9.992e-05,2]
[348700312,1736727039178,-500.0,9.992e-05,2]
[348700313,1736727039187,-500.0,9.992e-05,2]
[348700314,1736727039196,-500.0,9.992e-05,2]
[348700315,1736727039206,-500.0,9.992e-05,2]
[348700316,1736727039216,-500.0,9.992e-05,2]
[348700317,1736727039225,-500.0,9.992e-05,2]
[348700318,1736727039234,-500.0,9.992e-05,2]
[348700319,1736727039243,-501.71954857,9.992e-05,2]
[348700320,1736727039253,-503.16,9.992e-05,2]
[348700321,1736727039262,-500.0,9.992e-05,2]
[348700322,1736727039271,-500.0,9.992e-05,2]
[348700323,1736727039281,-500.0,9.992e-05,2]
[348700324,1736727039290,-500.0,9.992e-05,2]
[348700325,1736727039300,-500.0,9.992e-05,2]
[348700326,1736727039309,-500.0,9.992e-05,2]
[348700327,1736727039319,-500.0,9.992e-05,2]
[348700328,1736727039327,-500.0,9.992e-05,2]
[348700329,1736727039338,-500.0,9.992e-05,2]
[348700330,1736727039348,-505.75373351,9.992e-05,2]
[348700331,1736727039358,-503.32910166,9.992e-05,2]
[348700332,1736727039367,-500.0,9.992e-05,2]
[348700333,1736727039377,-500.0,9.992e-05,2]
[348700334,1736727039386,-500.0,9.992e-05,2]
[348700335,1736727039396,-508.22969326,9.992e-05,2]
[348700336,1736727039405,-500.0,9.992e-05,2]
[348700337,1736727039414,-500.0,9.992e-05,2]
[348700338,1736727039424,-500.0,9.992e-05,2]
[348700339,1736727039433,-510.77,9.992e-05,2]
[348700340,1736727039442,-500.0,9.992e-05,2]
[348700341,1736727039452,-500.0,9.992e-05,2]
[348700342,1736727039461,-500.0,9.992e-05,2]
[348700343,1736727039470,-503.12311388,9.992e-05,2]
[348700344,1736727039479,-500.0,9.992e-05,2]
[348700345,1736727039488,-500.0,9.992e-05,2]
[348700346,1736727039497,-620.98648965,9.992e-05,2]
[348700347,1736727039506,-500.0,9.992e-05,2]
[348700348,1736727039517,-506.8653332,9.992e-05,2]
[348700349,1736727039528,-500.0,9.992e-05,2]
[348700350,1736727039538,-500.0,9.992e-05,2]
[348700351,1736727039547,-500.0,9.992e-05,2]
[348700352,1736727039556,-174.96732529,9.992e-05,2]
[348700353,1736727039566,-500.74851513,9.992e-05,2]
[348700354,1736727039575,-500.0,9.992e-05,2]
[348700355,1736727039585,-503.93253735,9.992e-05,2]
[348700356,1736727039595,-524.6292708,9.992e-05,2]
[348700357,1736727039604,-500.0,9.992e-05,2]
[348700358,1736727039614,-500.0,9.992e-05,2]
[348700359,1736727039623,-21232.6825241,9.992e-05,2]
[348700360,1736727039632,-500.0,9.992e-05,2]
[348700361,1736727039642,-501.61535428,9.992e-05,2]
[348700362,1736727039651,-501.65646669,9.992e-05,2]
[348700363,1736727039660,-500.0,9.992e-05,2]
[348700364,1736727039674,-501.05451407,9.992e-05,2]
[348700365,1736727039684,-255.54597797,9.992e-05,2]
[348700366,1736727039694,-500.0,9.992e-05,2]
[348700367,1736727039703,-500.0,9.992e-05,2]
[348700368,1736727039711,-500.0,9.992e-05,2]
[348700369,1736727039723,-500.0,9.992e-05,2]
[348700370,1736727039732,-500.0,9.992e-05,2]
[348700371,1736727039743,-500.0,9.992e-05,2]
[348700372,1736727039752,-501.52614777,9.992e-05,2]
[348700373,1736727039762,-500.0,9.992e-05,2]
[348700374,1736727039771,-500.0,9.992e-05,2]
[348700375,1736727039781,-500.0,9.992e-05,2]
[348700376,1736727039790,-500.0,9.992e-05,2]
[348700377,1736727039800,-500.0,9.992e-05,2]
[348700378,1736727039810,-500.0,9.992e-05,2]
[348700379,1736727039819,-500.0,9.992e-05,2]
[348700380,1736727039827,-500.0,9.992e-05,2]
[348700381,1736727039837,-500.0,9.992e-05,2]
[348700382,1736727039845,-500.0,9.992e-05,2]
[348700383,1736727039854,-500.0,9.992e-05,2]
[348700384,1736727039863,-500.0,9.992e-05,2]
[348700385,1736727039872,-500.0,9.992e-05,2]
[348700386,1736727039882,-500.0,9.992e-05,2]
[348700387,1736727039891,-500.0,9.992e-05,2]
[348700388,1736727039901,-500.0,9.992e-05,2]
[348700389,1736727039911,-500.0,9.992e-05,2]
[348700390,1736727039920,-500.0,9.992e-05,2]
[348700391,1736727039930,-500.0,9.992e-05,2]
[348700392,1736727039939,-500.0,9.992e-05,2]
[348700393,1736727039948,-501.70264171,9.992e-05,2]
[348700394,1736727039957,-500.0,9.992e-05,2]
[348700395,1736727039966,-500.0,9.992e-05,2]
[348700396,1736727039975,-500.0,9.992e-05,2]
[348700397,1736727039985,-500.0,9.992e-05,2]
[348700398,1736727039994,-500.0,9.992e-05,2]
[348700399,1736727040005,-500.0,9.992e-05,2]
[348700400,1736727040014,-500.0,9.992e-05,2]
[348700401,1736727040023,-500.0,9.992e-05,2]
[348700402,1736727040032,-500.0,9.992e-05,2]
[348700403,1736727040042,-500.0,9.992e-05,2]
[348700404,1736727040052,-500.0,9.992e-05,2]
[348700405,1736727040061,-500.0,9.992e-05,2]
[348700406,1736727040070,-500.0,9.992e-05,2]
[348700407,1736727040079,-500.0,9.992e-05,2]
[348700408,1736727040088,-500.0,9.992e-05,2]
[348700409,1736727040097,-500.0,9.992e-05,2]
[348700410,1736727040106,-501.35271764,9.992e-05,2]
[348700411,1736727040115,-9744.8970191,9.992e-05,2]
[348700412,1736727040124,-175.45,9.992e-05,2]
[348700413,1736727040133,-500.0,9.992e-05,2]
[348700414,1736727040142,-600.0,9.992e-05,2]
[348700415,1736727040151,-500.0,9.992e-05,2]
[348700416,1736727040160,-500.0,9.992e-05,2]
[348700417,1736727040169,-500.0,9.992e-05,2]
[348700418,1736727040178,-500.0,9.992e-05,2]
[348700419,1736727040187,-500.0,9.992e-05,2]
[348700420,1736727040196,-500.0,9.992e-05,2]
[348700421,1736727040206,-501.71796041,9.992e-05,2]
[348700422,1736727040215,-500.0,9.992e-05,2]
[348700424,1736727040225,-500.0,9.992e-05,2]
[348700426,1736727040234,-1895.08,9.992e-05,2]
[348700428,1736727040243,-500.0,9.992e-05,2]
[348700429,1736727040255,-500.0,9.992e-05,2]
[348700430,1736727040264,-500.0,9.992e-05,2]
[348700431,1736727040274,-500.0,9.992e-05,2]
[348700432,1736727040284,-500.0,9.992e-05,2]
[348700433,1736727040294,-500.0,9.992e-05,2]
[348700434,1736727040304,-1390.54,9.992e-05,2]
[348700435,1736727040313,-500.0,9.992e-05,2]
[348700436,1736727040323,-500.0,9.992e-05,2]
[348700437,1736727040332,-500.0,9.992e-05,2]
[348700438,1736727040341,-500.0,9.992e-05,2]
[348700439,1736727040350,-500.0,9.992e-05,2]
[348700440,1736727040359,-500.0,9.992e-05,2]
[348700441,1736727040369,-578.10602452,9.992e-05,2]
[348700442,1736727040378,-502.8661683,9.992e-05,2]
[348700443,1736727040387,-1640.42,9.992e-05,2]
[348700444,1736727040396,-500.0,9.992e-05,2]
[348700445,1736727040405,-500.0,9.992e-05,2]
[348700446,1736727040415,-500.0,9.992e-05,2]
[348700447,1736727040424,-500.0,9.992e-05,2]
[348700448,1736727040433,-540.12,9.992e-05,2]
[348700449,1736727040443,-500.0,9.992e-05,2]
[348700450,1736727040453,-194.7,9.992e-05,2]
[348700451,1736727040462,-500.0,9.992e-05,2]
[348700452,1736727040472,-500.0,9.992e-05,2]
[348700453,1736727040482,-160.97852053,9.992e-05,2]
[348700454,1736727040493,-500.0,9.992e-05,2]
[348700455,1736727040505,-500.0,9.992e-05,2]
[348700456,1736727040515,-500.0,9.992e-05,2]
[348700457,1736727040524,-500.0,9.992e-05,2]
[348700458,1736727040533,-500.0,9.992e-05,2]
[348700459,1736727040543,-500.0,9.992e-05,2]
[348700460,1736727040552,-500.0,9.992e-05,2]
[348700461,1736727040561,-500.0,9.992e-05,2]
[348700462,1736727040571,-500.0,9.992e-05,2]
[348700463,1736727040580,-500.0,9.992e-05,2]
[348700464,1736727040591,-500.0,9.992e-05,2]
[348700465,1736727040601,-500.0,9.992e-05,2]
[348700466,1736727040610,-500.0,9.992e-05,2]
[348700467,1736727040619,-500.0,9.992e-05,2]
[348700468,1736727040629,-500.0,9.992e-05,2]
[348700469,1736727040638,-500.0,9.992e-05,2]
[348700470,1736727040648,-500.0,9.992e-05,2]
[348700471,1736727040659,-500.0,9.992e-05,2]
[348700472,1736727040673,-500.0,9.992e-05,2]
[348700473,1736727040682,-500.0,9.992e-05,2]
[348700474,1736727040692,-500.0,9.992e-05,2]
[348700475,1736727040703,-3665.6509044,9.992e-05,2]
[348700476,1736727040712,-500.0,9.992e-05,2]
[348700477,1736727040722,-500.0,9.992e-05,2]
[348700478,1736727040732,-500.0,9.992e-05,2]
[348700479,1736727040741,-500.0,9.992e-05,2]
[348700480,1736727040750,-500.0,9.992e-05,2]
[348700481,1736727040760,-500.0,9.992e-05,2]
[348700482,1736727040770,-500.0,9.992e-05,2]
[348700483,1736727040779,-500.0,9.992e-05,2]
[348700484,1736727040789,-541.43,9.992e-05,2]
[348700485,1736727040799,-500.0,9.992e-05,2]
[348700486,1736727040810,-500.0,9.992e-05,2]
[348700487,1736727040819,-500.0,9.992e-05,2]
[348700488,1736727040828,-500.0,9.992e-05,2]
[348700489,1736727040838,-604.7,9.992e-05,2]
[348700490,1736727040848,-500.0,9.992e-05,2]
[348700491,1736727040858,-500.0,9.992e-05,2]
[348700492,1736727040867,-500.0,9.992e-05,2]
[348700493,1736727040876,-500.0,9.992e-05,2]
[348700494,1736727040887,-500.0,9.992e-05,2]
[348700495,1736727040897,-500.0,9.992e-05,2]
[348700496,1736727040906,-500.0,9.992e-05,2]
[348700497,1736727040916,-500.0,9.992e-05,2]
[348700498,1736727040925,-257.67071372,9.992e-05,2]
[348700499,1736727040935,-500.0,9.992e-05,2]
[348700500,1736727040945,-500.0,9.992e-05,2]
[348700501,1736727040954,-1915.9944823,9.992e-05,2]
[348700502,1736727040963,-500.0,9.992e-05,2]
[348700503,1736727040974,-500.0,9.992e-05,2]
[348700504,1736727040984,-500.0,9.992e-05,2]
[348700505,1736727040994,-500.0,9.992e-05,2]
[348700506,1736727041005,-500.0,9.992e-05,2]
[348700507,1736727041014,-352.56061788,9.992e-05,2]
[348700508,1736727041023,-500.0,9.992e-05,2]
[348700509,1736727041034,-500.0,9.992e-05,2]
[348700510,1736727041043,-500.0,9.992e-05,2]
[348700511,1736727041053,-500.0,9.992e-05,2]
[348700512,1736727041062,-500.0,9.992e-05,2]
[348700513,1736727041071,-500.0,9.992e-05,2]
[348700514,1736727041080,-500.0,9.992e-05,2]
[348700515,1736727041089,-500.0,9.992e-05,2]
[348700516,1736727041099,-500.0,9.992e-05,2]
[348700517,1736727041108,-201.7952744,9.992e-05,2]
[348700518,1736727041117,-500.0,9.992e-05,2]
[348700519,1736727041126,-500.0,9.992e-05,2]
[348700520,1736727041136,-18782.7808605,9.993e-05,2]
[348700521,1736727041146,-16332.8791968,9.993e-05,2]
[348700522,1736727041156,-13882.9775331,9.993e-05,2]
[348700523,1736727041166,-11433.0758694,9.993e-05,2]
[348700524,1736727041175,-8983.1742058,9.993e-05,2]
[348700525,1736727041184,-8635.5766487,9.993e-05,2]
[348700526,1736727041193,-7526.2562783,9.993e-05,2]
[348700527,1736727041202,-6416.935908,9.993e-05,2]
[348700528,1736727041211,-5307.6155376,9.993e-05,2]
[348700529,1736727041220,-4198.2951673,9.993e-05,2]
[348700530,1736727041229,-3412.5796555,9.993e-05,2]
[348700531,1736727041237,-3159.5084065,9.993e-05,2]
[348700532,1736727041247,-2906.4371576,9.993e-05,2]
[348700533,1736727041257,-2653.3659086,9.993e-05,2]
[348700534,1736727041266,-2400.2946597,9.993e-05,2]
[348700535,1736727041275,-1783.716988,9.993e-05,2]
[348700536,1736727041285,-1651.4394937,9.993e-05,2]
[348700537,1736727041294,-1519.1619994,9.993e-05,2]
[348700538,1736727041303,-1386.8845051,9.993e-05,2]
[348700539,1736727041311,-1254.6070108,9.993e-05,2]
[348700540,1736727041322,-3298.50646809,9.995e-05,2]
[348700541,1736727041331,-1046.2,9.995e-05,2]
[348700542,1736727041340,-580.08,9.995e-05,2]
[348700543,1736727041350,-500.0,9.995e-05,2]
[348700544,1736727041359,-1568.76,9.995e-05,2]
[348700545,1736727041368,-500.0,9.995e-05,2]
[348700546,1736727041377,-500.0,9.995e-05,2]
[348700547,1736727041386,-500.0,9.995e-05,2]
[348700548,1736727041395,-500.0,9.995e-05,2]
[348700549,1736727041404,-2014.15,9.995e-05,2]
[348700550,1736727041413,-638.61,9.995e-05,2]
[348700551,1736727041422,-500.0,9.995e-05,2]
[348700552,1736727041431,-717.21,9.995e-05,2]
[348700553,1736727041440,-801.38,9.995e-05,2]
[348700554,1736727041449,-758.49,9.995e-05,2]
[348700555,1736727041458,-500.0,9.995e-05,2]